Workbook

Sheet Dataset
A1: Segment ID | B1: Road Name | C1: Length | D1: Existing PSI | E1: ADT | F1: ADTT
A2: 222-1 | B2: Chalk Bluff Road/"78" Rd | C2: 6.1 | D2: 0.3 | E2: 168 | F2: 72
A3: 3 | B3: Albin/LaGrange Rd | C3: 10.7 | D3: 0.9 | E3: 108 | F3: 22
A4: 6 | B4: Black hills Rd | C4: 10.1 | D4: 0.1 | E4: 114 | F4: 36
A5: 19-1 | B5: Old Highway Birns West | C5: 6.5 | D5: 0.3 | E5: 198 | F5: 26
A6: 222 | B6: Chalk Bluff Road/"78" Rd | C6: 5.5 | D6: 1 | E6: 168 | F6: 72
A7: 21-2 | B7: Old Yellowstone Rd | C7: 2.7 | D7: 0.2 | E7: 36 | F7: 6
A8: 21-1 | B8: Old Yellowstone Rd | C8: 1.9 | D8: 0.9 | E8: 36 | F8: 6
A9: 21 | B9: Old Yellowstone Rd | C9: 1.2 | D9: 0 | E9: 36 | F9: 6
A10: 10 | B10: Chalk Bluff Road/"78" Rd | C10: 7.7 | D10: 1.4 | E10: 350 | F10: 40
A11: 18-1 | B11: Moffet Rd | C11: 4.5 | D11: 1.3 | E11: 26 | F11: 1
A12: 15 | B12: Hillslade Rd West | C12: 3.8 | D12: 2.2 | E12: 372 | F12: 62
A13: 14-1 | B13: Hillslade N Rd/Midway | C13: 5.1 | D13: 2.8 | E13: 372 | F13: 62
A14: 13 | B14: Gillaspie Rd | C14: 4.8 | D14: 2.8 | E14: 37 | F14: 7
A15: 18 | B15: Moffet Rd | C15: 3.5 | D15: 3.1 | E15: 26 | F15: 1
A16: 2 | B16: A-118-1 | C16: 2 | D16: 3.2 | E16: 34 | F16: 7
A17: 11 | B17: Chalk Hill/Bliss Rd | C17: 2 | D17: 3.2 | E17: 34 | F17: 7
A18: 7 | B18: Bristol Ridge/Hirsig Rd | C18: 1.6 | D18: 2.9 | E18: 31 | F18: 1
A19: 8 | B19: Bruegman Rd | C19: 1.3 | D19: 2.9 | E19: 24 | F19: 4
A20: 1 | B20: CR 140-1 | C20: 4.3 | D20: 2.4 | E20: 328 | F20: 40
A21: 5 | B21: Bear Creek/marsh Rd | C21: 2.7 | D21: 2.1 | E21: 15 | F21: 1
A22: 9 | B22: Carpenter Rd/Berger Rd | C22: 2.5 | D22: 3.1 | E22: 518 | F22: 243
A23: 14 | B23: Hillslade N Rd/Midway | C23: 8.1 | D23: 3.5 | E23: 372 | F23: 62
A24: 21-3 | B24: Old Yellowstone Rd | C24: 4.9 | D24: 3.6 | E24: 36 | F24: 6

Sheet Program
A1: 1 | B1: =A1+1 -> 2 | C1: =B1+1 -> 3 | D1: 4 | E1: 5 | F1: 6 | G1: 7 | H1: 8 | I1: 9 | J1: 10 | K1: 11 | L1: 12 | M1: 13 | N1: 14 | O1: 15 | P1: 16 | Q1: 17 | R1: 18 | S1: 19
A2: Segment ID | B2: Road Name | C2: Length | D2: Existing PSI | E2: Rut Depth | F2: Road Width | G2: Treatment Type | H2: Estimated Cost | I2: Expected PSI with Treatment | J2: Expected PSI without Treatment | L2: ADT | M2: ADTT | N2: Identify Project | O2: PSI | P2: Cost after Treatment | Q2: ADT on Selected Segments | R2: ADTT on Selected Segments
A3: 222-1 | B3: Chalk Bluff Road/"78" Rd | C3: 6.1 | D3: 0.3 | E3: 0.3 | F3: 25 | G3: 5-R | H3: 7320000 | I3: 4.3 | J3: 0 | L3: 168 | M3: 72 | N3: 0 | O3: =IF(N3=0, J3,I3) -> 0 | P3: =IF(N3=0, 0,H3*O3*C3) -> 0 | Q3: =IF(P3=0, N3,L3) -> 0 | R3: =IF(Q3=0, N3,M3) -> 0
A4: 3 | B4: Albin/LaGrange Rd | C4: 10.7 | D4: 0.9 | E4: 0.295 | F4: 25 | G4: 5-R | H4: 12840000 | I4: 4.3 | J4: 0.1893983476 | L4: 108 | M4: 22 | N4: 0 | O4: =IF(N4=0, J4,I4) -> 0.1893983476 | P4: 0 | Q4: =IF(P4=0, N4,L4) -> 0 | R4: =IF(Q4=0, N4,M4) -> 0
A5: 6 | B5: Black hills Rd | C5: 10.1 | D5: 0.1 | E5: 0.322 | F5: 22 | G5: 5-R | H5: 12120000 | I5: 4.3 | J5: 0 | L5: 114 | M5: 36 | N5: 0 | O5: 0 | P5: 0 | Q5: 0 | R5: 0
A6: 19-1 | B6: Old Highway Birns West | C6: 6.5 | D6: 0.3 | E6: 0.359 | F6: 22 | G6: 5-R | H6: 7800000 | I6: 4.3 | J6: 0 | L6: 198 | M6: 26 | N6: 0 | O6: 0 | P6: 0 | Q6: 0 | R6: 0
A7: 222 | B7: Chalk Bluff Road/"78" Rd | C7: 5.5 | D7: 1 | E7: 0.296 | F7: 23 | G7: 5-R | H7: 6600000 | I7: 4.3 | J7: 0.406534512 | L7: 168 | M7: 72 | N7: 0 | O7: 0.406534512 | P7: 0 | Q7: 0 | R7: 0
A8: 21-2 | B8: Old Yellowstone Rd | C8: 2.7 | D8: 0.2 | E8: 0.319 | F8: 20 | G8: 5-R | H8: 3240000 | I8: 4.3 | J8: 0 | L8: 36 | M8: 6 | N8: 0 | O8: 0 | P8: 0 | Q8: 0 | R8: 0
A9: 21-1 | B9: Old Yellowstone Rd | C9: 1.9 | D9: 0.9 | E9: 0.241 | F9: 21 | G9: 5-R | H9: 2280000 | I9: 4.3 | J9: 0.1893983476 | L9: 36 | M9: 6 | N9: 0 | O9: 0.1893983476 | P9: 0 | Q9: 0 | R9: 0
A10: 21 | B10: Old Yellowstone Rd | C10: 1.2 | D10: 0 | E10: 0.328 | F10: 21 | G10: 5-R | H10: 1440000 | I10: 4.3 | J10: 0 | L10: 36 | M10: 6 | N10: 0 | O10: 0 | P10: 0 | Q10: 0 | R10: 0
A11: 10 | B11: Chalk Bluff Road/"78" Rd | C11: 7.7 | D11: 1.4 | E11: 0.377 | F11: 24 | G11: 4-R | H11: 5005000 | I11: 4.1 | J11: 1.119888304 | L11: 350 | M11: 40 | N11: 0 | O11: 1.119888304 | P11: 0 | Q11: 0 | R11: 0
A12: 18-1 | B12: Moffet Rd | C12: 4.5 | D12: 1.3 | E12: 0.308 | F12: 23 | G12: 4-R | H12: 2925000 | I12: 4.1 | J12: 0.9615425949 | L12: 26 | M12: 1 | N12: 0 | O12: 0.9615425949 | P12: 0 | Q12: 0 | R12: 0
A13: 15 | B13: Hillslade Rd West | C13: 3.8 | D13: 2.2 | E13: 0.157 | F13: 24 | G13: 3-R | H13: 1330000 | I13: 4 | J13: 2.093865764 | L13: 372 | M13: 62 | N13: 0 | O13: 2.093865764 | P13: 0 | Q13: 0 | R13: 0
A14: 14-1 | B14: Hillslade N Rd/Midway | C14: 5.1 | D14: 2.8 | E14: 0.275 | F14: 24 | G14: 3-R | H14: 1785000 | I14: 4 | J14: 2.681288061 | L14: 372 | M14: 62 | N14: 0 | O14: 2.681288061 | P14: 0 | Q14: 0 | R14: 0
A15: 13 | B15: Gillaspie Rd | C15: 4.8 | D15: 2.8 | E15: 0.272 | F15: 22 | G15: 3-R | H15: 1680000 | I15: 4 | J15: 2.681288061 | L15: 37 | M15: 7 | N15: 0 | O15: 2.681288061 | P15: 0 | Q15: 0 | R15: 0
A16: 18 | B16: Moffet Rd | C16: 3.5 | D16: 3.1 | E16: 0.228 | F16: 23 | G16: 3-R | H16: 1225000 | I16: 4 | J16: 2.979039573 | L16: 26 | M16: 1 | N16: 0 | O16: 2.979039573 | P16: 0 | Q16: 0 | R16: 0
A17: 2 | B17: A-118-1 | C17: 2 | D17: 3.2 | E17: 0.277 | F17: 22 | G17: 3-R | H17: 700000 | I17: 4 | J17: 3.081234457 | L17: 34 | M17: 7 | N17: 0 | O17: 3.081234457 | P17: 0 | Q17: 0 | R17: 0
A18: 11 | B18: Chalk Hill/Bliss Rd | C18: 2 | D18: 3.2 | E18: 0.264 | F18: 23 | G18: 3-R | H18: 700000 | I18: 4 | J18: 3.081234457 | L18: 34 | M18: 7 | N18: 0 | O18: 3.081234457 | P18: 0 | Q18: 0 | R18: 0
A19: 7 | B19: Bristol Ridge/Hirsig Rd | C19: 1.6 | D19: 2.9 | E19: 0.208 | F19: 22 | G19: 3-R | H19: 560000 | I19: 4 | J19: 2.779282631 | L19: 31 | M19: 1 | N19: 0 | O19: 2.779282631 | P19: 0 | Q19: 0 | R19: 0
A20: 8 | B20: Bruegman Rd | C20: 1.3 | D20: 2.9 | E20: 0.26 | F20: 24 | G20: 3-R | H20: 455000 | I20: 4 | J20: 2.779282631 | L20: 24 | M20: 4 | N20: 0 | O20: 2.779282631 | P20: 0 | Q20: 0 | R20: 0
A21: 1 | B21: CR 140-1 | C21: 4.3 | D21: 2.4 | E21: 0.219 | F21: 26 | G21: 1-R | H21: 258000 | I21: 3.9 | J21: 2.293109072 | L21: 328 | M21: 40 | N21: 0 | O21: 2.293109072 | P21: 0 | Q21: 0 | R21: 0
A22: 5 | B22: Bear Creek/marsh Rd | C22: 2.7 | D22: 2.1 | E22: 0.26 | F22: 26 | G22: 1-R | H22: 162000 | I22: 3.9 | J22: 1.99065938 | L22: 15 | M22: 1 | N22: 0 | O22: 1.99065938 | P22: 0 | Q22: 0 | R22: 0
A23: 9 | B23: Carpenter Rd/Berger Rd | C23: 2.5 | D23: 3.1 | E23: 0.193 | F23: 27 | G23: GM | H23: 0 | I23: 3.1 | J23: 2.979039573 | L23: 518 | M23: 243 | N23: 0 | O23: 2.979039573 | P23: 0 | Q23: 0 | R23: 0
A24: 14 | B24: Hillslade N Rd/Midway | C24: 8.1 | D24: 3.5 | E24: 0.216 | F24: 26 | G24: GM | H24: 0 | I24: 3.5 | J24: 3.397660221 | L24: 372 | M24: 62 | N24: 0 | O24: 3.397660221 | P24: 0 | Q24: 0 | R24: 0
A25: 21-3 | B25: Old Yellowstone Rd | C25: 4.9 | D25: 3.6 | E25: 0.154 | F25: 34 | G25: GM | H25: 0 | I25: 3.6 | J25: 3.505924459 | L25: 36 | M25: 6 | N25: 0 | O25: 3.505924459 | P25: 0 | Q25: 0 | R25: 0
A26: Average | D26: =SUMPRODUCT(C3:C25,D3:D25)/C27 -> 1.706956522 | I26: =SUMPRODUCT(C3:C25,I3:I25)/C27 -> 4.054782609 | J26: =SUMPRODUCT(C3:C25,J3:J25)/C27 -> 1.451866707 | O26: =SUMPRODUCT(C3:C25,O3:O25)/C27 -> 1.451866707 | Q26: =SUMPRODUCT(C3:C25,Q3:Q25)/C27 -> 0 | R26: =SUMPRODUCT(C3:C25,R3:R25)/C27 -> 0
A27: Total | C27: =SUM(C3:C25) -> 103.5 | E27: =SUMPRODUCT(C3:C25,E3:E25)/C27 -> 0.2771768116 | H27: =SUM(H3:H25) -> 70425000 | P27: =SUM(P3:P26) -> 0
O30: =O26/#REF! -> 

Sheet Program Data
A1: 1 | B1: =A1+1 -> 2 | C1: =B1+1 -> 3 | D1: 4 | E1: 5 | F1: 6 | G1: 7 | H1: 8 | I1: 9 | J1: 10 | K1: 11 | L1: 12 | M1: 13 | N1: 14 | O1: 15 | P1: 16 | Q1: 17 | R1: 18 | S1: 19 | T1: 20
A2: Segment ID | B2: Road Name | C2: Length | D2: Existing PSI | E2: Rut Depth | F2: Road Width | G2: Treatment Type | H2: Estimated Cost | I2: Estimated Risk | J2: Expected PSI with Treatment | K2: Expected PSI without Treatment | M2: ADT | N2: ADTT | O2: Identify Project | P2: PSI | Q2: Cost after Treatment | R2: ADT on Selected Segments | S2: ADTT on Selected Segments
A3: 222-1 | B3: Chalk Bluff Road/"78" Rd | C3: 6.1 | D3: 0.3 | E3: 0.3 | F3: 25 | G3: 5-R | H3: 7320000 | I3: 0.05 | J3: 4.3 | K3: 0 | M3: 168 | N3: 72 | O3: 0 | P3: =IF(O3=0, K3,J3) -> 0 | Q3: =IF(O3=0, 0,H3*P3*C3) -> 0 | R3: =IF(Q3=0, O3,M3) -> 0 | S3: =IF(R3=0, O3,N3) -> 0
A4: 3 | B4: Albin/LaGrange Rd | C4: 10.7 | D4: 0.9 | E4: 0.295 | F4: 25 | G4: 5-R | H4: 12840000 | I4: 0.05 | J4: 4.3 | K4: 0.1893983476 | M4: 108 | N4: 22 | O4: 0 | P4: =IF(O4=0, K4,J4) -> 0.1893983476 | Q4: =IF(O4=0, 0,H4*P4*C4) -> 0 | R4: =IF(Q4=0, O4,M4) -> 0 | S4: =IF(R4=0, O4,N4) -> 0
A5: 6 | B5: Black hills Rd | C5: 10.1 | D5: 0.1 | E5: 0.322 | F5: 22 | G5: 5-R | H5: 12120000 | I5: 0.05 | J5: 4.3 | K5: 0 | M5: 114 | N5: 36 | O5: 0 | P5: 0 | Q5: 0 | R5: 0 | S5: 0
A6: 19-1 | B6: Old Highway Birns West | C6: 6.5 | D6: 0.3 | E6: 0.359 | F6: 22 | G6: 5-R | H6: 7800000 | I6: 0.05 | J6: 4.3 | K6: 0 | M6: 198 | N6: 26 | O6: 0 | P6: 0 | Q6: 0 | R6: 0 | S6: 0
A7: 222 | B7: Chalk Bluff Road/"78" Rd | C7: 5.5 | D7: 1 | E7: 0.296 | F7: 23 | G7: 5-R | H7: 6600000 | I7: 0.05 | J7: 4.3 | K7: 0.406534512 | M7: 168 | N7: 72 | O7: 0 | P7: 0.406534512 | Q7: 0 | R7: 0 | S7: 0
A8: 21-2 | B8: Old Yellowstone Rd | C8: 2.7 | D8: 0.2 | E8: 0.319 | F8: 20 | G8: 5-R | H8: 3240000 | I8: 0.05 | J8: 4.3 | K8: 0 | M8: 36 | N8: 6 | O8: 0 | P8: 0 | Q8: 0 | R8: 0 | S8: 0
A9: 21-1 | B9: Old Yellowstone Rd | C9: 1.9 | D9: 0.9 | E9: 0.241 | F9: 21 | G9: 5-R | H9: 2280000 | I9: 0.05 | J9: 4.3 | K9: 0.1893983476 | M9: 36 | N9: 6 | O9: 0 | P9: 0.1893983476 | Q9: 0 | R9: 0 | S9: 0
A10: 21 | B10: Old Yellowstone Rd | C10: 1.2 | D10: 0 | E10: 0.328 | F10: 21 | G10: 5-R | H10: 1440000 | I10: 0.05 | J10: 4.3 | K10: 0 | M10: 36 | N10: 6 | O10: 1 | P10: 4.3 | Q10: 7430400 | R10: 36 | S10: 6
A11: 10 | B11: Chalk Bluff Road/"78" Rd | C11: 7.7 | D11: 1.4 | E11: 0.377 | F11: 24 | G11: 4-R | H11: 5005000 | I11: 1 | J11: 4.1 | K11: 1.119888304 | M11: 350 | N11: 40 | O11: 0 | P11: 1.119888304 | Q11: 0 | R11: 0 | S11: 0
A12: 18-1 | B12: Moffet Rd | C12: 4.5 | D12: 1.3 | E12: 0.308 | F12: 23 | G12: 4-R | H12: 2925000 | I12: 1 | J12: 4.1 | K12: 0.9615425949 | M12: 26 | N12: 1 | O12: 0 | P12: 0.9615425949 | Q12: 0 | R12: 0 | S12: 0
A13: 15 | B13: Hillslade Rd West | C13: 3.8 | D13: 2.2 | E13: 0.157 | F13: 24 | G13: 3-R | H13: 1330000 | I13: 0.538 | J13: 4 | K13: 2.093865764 | M13: 372 | N13: 62 | O13: 0 | P13: 2.093865764 | Q13: 0 | R13: 0 | S13: 0
A14: 14-1 | B14: Hillslade N Rd/Midway | C14: 5.1 | D14: 2.8 | E14: 0.275 | F14: 24 | G14: 3-R | H14: 1785000 | I14: 0.538 | J14: 4 | K14: 2.681288061 | M14: 372 | N14: 62 | O14: 0 | P14: 2.681288061 | Q14: 0 | R14: 0 | S14: 0
A15: 13 | B15: Gillaspie Rd | C15: 4.8 | D15: 2.8 | E15: 0.272 | F15: 22 | G15: 3-R | H15: 1680000 | I15: 0.538 | J15: 4 | K15: 2.681288061 | M15: 37 | N15: 7 | O15: 0 | P15: 2.681288061 | Q15: 0 | R15: 0 | S15: 0
A16: 18 | B16: Moffet Rd | C16: 3.5 | D16: 3.1 | E16: 0.228 | F16: 23 | G16: 3-R | H16: 1225000 | I16: 0.538 | J16: 4 | K16: 2.979039573 | M16: 26 | N16: 1 | O16: 0 | P16: 2.979039573 | Q16: 0 | R16: 0 | S16: 0
A17: 2 | B17: A-118-1 | C17: 2 | D17: 3.2 | E17: 0.277 | F17: 22 | G17: 3-R | H17: 700000 | I17: 0.538 | J17: 4 | K17: 3.081234457 | M17: 34 | N17: 7 | O17: 1 | P17: 4 | Q17: 5600000 | R17: 34 | S17: 7
A18: 11 | B18: Chalk Hill/Bliss Rd | C18: 2 | D18: 3.2 | E18: 0.264 | F18: 23 | G18: 3-R | H18: 700000 | I18: 0.538 | J18: 4 | K18: 3.081234457 | M18: 34 | N18: 7 | O18: 0 | P18: 3.081234457 | Q18: 0 | R18: 0 | S18: 0
A19: 7 | B19: Bristol Ridge/Hirsig Rd | C19: 1.6 | D19: 2.9 | E19: 0.208 | F19: 22 | G19: 3-R | H19: 560000 | I19: 0.538 | J19: 4 | K19: 2.779282631 | M19: 31 | N19: 1 | O19: 0 | P19: 2.779282631 | Q19: 0 | R19: 0 | S19: 0
A20: 8 | B20: Bruegman Rd | C20: 1.3 | D20: 2.9 | E20: 0.26 | F20: 24 | G20: 3-R | H20: 455000 | I20: 0.538 | J20: 4 | K20: 2.779282631 | M20: 24 | N20: 4 | O20: 0 | P20: 2.779282631 | Q20: 0 | R20: 0 | S20: 0
A21: 1 | B21: CR 140-1 | C21: 4.3 | D21: 2.4 | E21: 0.219 | F21: 26 | G21: 1-R | H21: 258000 | I21: 0.092 | J21: 3.9 | K21: 2.293109072 | M21: 328 | N21: 40 | O21: 0 | P21: 2.293109072 | Q21: 0 | R21: 0 | S21: 0
A22: 5 | B22: Bear Creek/marsh Rd | C22: 2.7 | D22: 2.1 | E22: 0.26 | F22: 26 | G22: 1-R | H22: 162000 | I22: 0.092 | J22: 3.9 | K22: 1.99065938 | M22: 15 | N22: 1 | O22: 1 | P22: 3.9 | Q22: 1705860 | R22: 15 | S22: 1
A23: 9 | B23: Carpenter Rd/Berger Rd | C23: 2.5 | D23: 3.1 | E23: 0.193 | F23: 27 | G23: GM | H23: 0 | I23: 0.05 | J23: 3.1 | K23: 2.979039573 | M23: 518 | N23: 243 | O23: 0 | P23: 2.979039573 | Q23: 0 | R23: 0 | S23: 0
A24: 14 | B24: Hillslade N Rd/Midway | C24: 8.1 | D24: 3.5 | E24: 0.216 | F24: 26 | G24: GM | H24: 0 | I24: 0.05 | J24: 3.5 | K24: 3.397660221 | M24: 372 | N24: 62 | O24: 0 | P24: 3.397660221 | Q24: 0 | R24: 0 | S24: 0
A25: 21-3 | B25: Old Yellowstone Rd | C25: 4.9 | D25: 3.6 | E25: 0.154 | F25: 34 | G25: GM | H25: 0 | I25: 0.05 | J25: 3.6 | K25: 3.505924459 | M25: 36 | N25: 6 | O25: 0 | P25: 3.505924459 | Q25: 0 | R25: 0 | S25: 0
A26: Average | D26: =SUMPRODUCT(C3:C25,D3:D25)/C27 -> 1.706956522 | I26: =SUMPRODUCT(C3:C25,I3:I25)/C27 -> 0.2784521739 | J26: =SUMPRODUCT(C3:C25,J3:J25)/C27 -> 4.054782609 | K26: =SUMPRODUCT(C3:C25,K3:K25)/C27 -> 1.451866707 | P26: =SUMPRODUCT(C3:C25,P3:P25)/C27 -> 1.569284589 | R26: =SUMPRODUCT(C3:C25,R3:R25)/C27 -> 1.465700483 | S26: =SUMPRODUCT(C3:C25,S3:S25)/C27 -> 0.2309178744
A27: Total | C27: =SUM(C3:C25) -> 103.5 | E27: =SUMPRODUCT(C3:C25,E3:E25)/C27 -> 0.2771768116 | H27: =SUM(H3:H25) -> 70425000 | Q27: =SUM(Q3:Q26) -> 14736260
